bitfinex-derivatives/quotes_ETHF0:USTF0_20251117
["timestamp","ask_amount","ask_price","bid_price","bid_amount"]
[1763406375340,0.53501,3030.7,3029.5,4.09183761]
[1763406375534,3.2078,3031.0,3029.9,3.2078]
[1763406375739,0.53507,3030.4,3029.9,3.2078]
[1763406375942,3.2078,3031.0,3029.9,3.2078]
[1763406376134,3.2078,3031.0,3030.0,0.88403761]
[1763406376336,1.53e-06,3031.0,3030.9,3.2078]
[1763406376542,0.4241,3034.8,3030.9,3.2078]
[1763406376543,3.2078,3032.5,3030.9,10.0018]
[1763406376737,3.2078,3033.4,3032.2,0.87791501]
[1763406376935,0.53456,3033.3,3032.2,0.87791501]
[1763406377137,0.53461,3033.0,3032.5,3.2078]
[1763406377346,0.00494893,3033.0,3032.5,3.2078]
[1763406377547,0.00494893,3033.0,3032.9,3.2078]
[1763406377750,0.53462,3032.9,3032.5,3.2078]
[1763406377941,3.2078,3033.4,3032.5,3.2078]
[1763406378142,3.2078,3033.8,3032.9,3.2078]
[1763406378743,3.2078,3033.8,3033.3,3.2078]
[1763406378949,0.5344,3034.2,3033.7,3.2078]
[1763406379148,3.2078,3034.3,3033.3,3.2078]
[1763406379340,0.53443,3034.0,3033.7,3.2078]
[1763406379541,3.2078,3034.7,3033.7,3.2078]
[1763406379753,3.2078,3035.1,3034.1,3.2078]
[1763406379943,0.6425,3035.0,3034.1,3.2078]
[1763406380452,3.2078,3035.1,3034.1,3.2078]
[1763406380644,0.53431,3034.7,3034.1,3.2078]
[1763406381152,0.6425,3035.0,3034.1,3.2078]
[1763406381352,3.2078,3034.4,3033.7,3.2078]
[1763406381545,3.2078,3034.8,3033.7,3.2078]
[1763406381851,3.2078,3034.8,3034.2,3.2078]
[1763406382254,0.53431,3034.7,3034.2,3.2078]
[1763406382452,0.53434,3034.5,3033.8,3.2078]
[1763406382657,0.53439,3034.3,3033.8,3.2078]
[1763406382859,0.00494893,3034.8,3034.2,3.2078]
[1763406383160,0.00494893,3034.8,3034.7,3.2078]
[1763406383360,0.00494893,3034.8,3034.7,3.6015458]
[1763406383551,0.00494893,3034.8,3034.7,0.3937458]
[1763406384453,3.21274893,3034.8,3034.7,0.00263508]
[1763406385156,3.85524893,3034.8,3034.7,0.00263508]
[1763406385359,3.85524893,3034.8,3033.4,44.0078]
[1763406385360,0.5345,3033.6,3033.5,0.39263601]
[1763406385965,6.0,3033.6,3032.5,3.2078]
[1763406386159,3.2078,3033.3,3032.9,3.2078]
[1763406386352,0.64744893,3034.8,3032.1,0.5148]
[1763406386353,3.2078,3033.8,3033.0,0.39273491]
[1763406386555,3.2078,3034.2,3033.3,3.2078]
[1763406386755,3.2078,3034.2,3033.4,0.3926244]
[1763406386960,0.53448,3033.7,3033.5,0.3926244]
[1763406387158,3.2078,3033.6,3032.5,3.2078]
[1763406387465,0.53462,3032.9,3032.6,0.39259633]
[1763406387756,3.2078,3033.7,3032.7,0.39259633]
[1763406387951,3.2078,3033.3,3032.8,0.39259633]
[1763406388151,3.2078,3033.3,3031.9,40.8]
[1763406388152,0.53459,3033.1,3032.9,0.39259633]
[1763406388348,0.53472,3032.4,3032.2,3.2078]
[1763406388550,0.53472,3032.4,3032.3,0.39280932]
[1763406388756,0.53475,3032.2,3031.6,3.2078]
[1763406388962,0.5348,3031.9,3031.7,0.39285889]
[1763406389159,0.53488,3031.5,3031.0,3.2078]
[1763406389460,0.53484,3031.7,3031.1,0.3932203]
[1763406389666,0.00255433,3031.9,3031.4,3.2078]
[1763406389864,4.893e-05,3031.7,3031.5,0.3932203]
[1763406390060,4.893e-05,3031.7,3031.6,3.6010203]
[1763406390262,4.893e-05,3031.7,3031.6,0.3932203]
[1763406390465,4.893e-05,3031.7,3031.6,3.6010203]
[1763406391180,4.893e-05,3031.7,3031.6,0.3933276]
[1763406391468,4.893e-05,3031.7,3031.6,3.6011276]
[1763406391663,4.893e-05,3031.7,3031.6,0.3933276]
[1763406392058,4.893e-05,3031.7,3031.6,0.39726589]
[1763406392463,0.53487893,3031.7,3031.6,0.39726589]
[1763406394556,0.53494,3031.1,3031.0,0.00494893]
[1763406395470,0.5351,3030.2,3029.9,3.2078]
[1763406395674,0.5351,3030.2,3030.1,0.00389814]
[1763406395964,3.2078,3030.7,3030.1,0.00389814]
[1763406396170,0.5878,3031.2,3030.4,3.2078]
[1763406396171,3.7956,3031.2,3030.4,3.2078]
[1763406396368,0.53508,3030.3,3030.1,0.00389814]
[1763406396567,1.12288,3030.3,3030.1,0.00389814]
[1763406397163,0.53531,3029.0,3028.9,0.87791501]
[1763406397466,0.53528,3029.2,3028.9,4.0258077]
[1763406397666,0.53528,3029.2,3029.0,0.8180077]
[1763406397871,0.53536,3028.7,3028.5,3.2078]
[1763406398168,0.53536,3028.7,3028.1,1.17055334]
[1763406398169,0.53551,3027.9,3027.7,0.87791501]
[1763406398370,3.2078,3028.6,3027.6,3.2078]
[1763406398371,0.53548,3028.1,3027.6,3.2078]
[1763406398567,0.5878,3028.5,3027.6,3.2078]
[1763406398568,0.53549,3028.0,3027.6,3.2078]
[1763406398968,3.2078,3028.2,3027.7,4.02483578]
[1763406399165,3.2078,3028.2,3027.3,4.08571501]
[1763406399362,0.53558,3027.5,3027.3,3.2078]
[1763406399560,0.5878,3028.5,3027.4,0.00494893]
[1763406399561,0.00494893,3028.1,3027.4,0.00494893]
[1763406399763,0.00494893,3028.1,3027.5,0.81581387]
[1763406399964,0.00494893,3028.1,3027.4,0.00494893]
[1763406400172,0.00494893,3028.1,3027.7,3.2078]
[1763406400667,0.00494893,3028.1,3027.4,0.00494893]
[1763406400862,0.53556,3027.6,3027.4,0.00494893]
[1763406401263,0.00494893,3028.1,3027.4,0.00494893]
[1763406401469,0.5380147,3027.6,3027.4,0.00885353]
[1763406401662,0.0024447,3027.6,3027.4,0.00885353]
[1763406402968,1.1258047,3027.6,3027.4,0.00885353]
[1763406403160,0.0024447,3027.6,3027.4,0.00885353]
[1763406404665,4.47e-05,3027.6,3027.4,3.31125353]
[1763406404967,4.47e-05,3027.6,3027.4,0.00885353]
[1763406405164,4.47e-05,3027.6,3027.5,6.0]
[1763406405364,4.47e-05,3027.6,3027.5,6.8115949]
[1763406405568,0.53535,3028.8,3027.6,3.5324]
[1763406405765,3.2078,3029.6,3028.7,3.2078]
[1763406406161,0.53525,3029.4,3028.7,3.2078]
[1763406406365,0.53522,3029.5,3028.7,3.2078]
[1763406406561,3.2078,3029.6,3029.2,3.2078]
[1763406406766,3.2078,3029.6,3028.6,3.2078]
[1763406406961,0.53524,3029.4,3029.2,3.2078]
[1763406407171,0.53525,3029.3,3028.8,3.2078]
[1763406407372,0.5353,3029.1,3028.8,3.2078]
[1763406407572,0.00785313,3029.4,3028.8,3.2078]
[1763406407573,0.54309313,3029.4,3028.8,3.2078]
[1763406407784,0.00785313,3029.4,3029.2,3.2078]
[1763406408074,0.00785313,3029.4,3028.7,0.00494893]
[1763406408075,0.00785313,3029.4,3029.3,3.2078]
[1763406408467,3.2078,3030.4,3029.3,6.5086]
[1763406408668,3.2078,3030.4,3029.8,3.2078]
[1763406408874,0.53522,3029.5,3029.3,3.2078]
[1763406409064,3.2078,3030.0,3028.9,3.2078]
[1763406409065,0.53524,3029.4,3028.9,3.2078]
[1763406409266,0.53528,3029.2,3028.9,3.2078]
[1763406409571,0.00424572,3029.2,3028.9,3.21168344]
[1763406409774,0.53554,3027.7,3027.5,0.87791501]
[1763406410070,0.5878,3028.5,3026.3,3.2078]
[1763406410071,3.7956,3027.6,3026.3,3.2078]
[1763406410273,3.2078,3026.8,3025.9,3.2078]
[1763406410574,0.5878,3027.6,3026.3,3.2078]
[1763406410575,3.2078,3027.2,3026.3,3.2078]
[1763406410873,0.00494893,3027.1,3026.9,0.53567]
[1763406411079,0.00494893,3027.1,3026.4,0.00494893]
[1763406411571,3.2078,3026.8,3026.4,0.00494893]
[1763406411962,3.2078,3026.8,3026.6,0.53572]
[1763406412174,0.00494893,3027.1,3026.9,0.53567]
[1763406412479,0.00494893,3027.1,3027.0,0.53566]
[1763406412864,0.00494893,3027.1,3026.5,3.2078]
[1763406413069,0.00494893,3027.1,3026.8,0.53569]
[1763406413377,0.00494893,3027.1,3026.4,0.00494893]
[1763406413378,0.00494893,3027.1,3026.9,0.53567]
[1763406414875,0.00415264,3027.2,3027.1,0.53564]
[1763406415572,3.2078,3028.1,3027.1,10.1157551]
[1763406415772,3.2078,3028.1,3027.2,0.8125551]
[1763406415974,0.00494893,3028.0,3027.8,0.53552]
[1763406416163,0.00494893,3028.0,3027.6,0.53555]
[1763406416368,0.00494893,3028.0,3027.5,0.8125551]
[1763406416578,0.00494893,3028.0,3027.6,0.53555]
[1763406416769,0.0087183,3028.0,3027.6,0.53555]
[1763406417070,0.0087183,3028.0,3027.7,0.53553]
[1763406417270,0.0087183,3028.0,3027.3,0.81330265]
[1763406417472,0.0087183,3028.0,3027.5,0.53556]
[1763406417673,0.0087183,3028.0,3027.6,0.81446949]
[1763406417876,0.0087183,3028.0,3027.3,0.87791501]
[1763406418078,0.0087183,3028.0,3027.8,0.53551]
[1763406418282,0.0087183,3028.0,3027.9,0.81548792]
[1763406420277,0.6392,3027.6,3027.3,0.87791501]
[1763406420575,3.2078,3027.4,3026.8,1.41361501]
[1763406420775,3.2078,3027.4,3026.8,0.87791501]
[1763406420976,3.2078,3027.0,3026.9,0.53568]
[1763406421170,3.2078,3027.0,3026.8,0.87791501]
[1763406421366,3.2078,3027.0,3026.9,0.87791501]
[1763406421888,3.2078,3027.0,3026.9,1.41359501]
[1763406422180,3.2078,3027.0,3026.9,0.87791501]
[1763406422378,3.2078,3027.0,3026.9,1.17055334]
[1763406422578,3.2078,3027.0,3026.8,0.88191406]
[1763406422786,0.6392,3026.7,3026.6,0.88191406]
[1763406423077,3.2078,3027.0,3026.4,0.00494893]
[1763406423274,3.2078,3026.5,3026.4,1.42275863]
[1763406423477,3.2078,3026.5,3026.4,0.54071893]
[1763406423679,3.2078,3026.9,3026.7,0.5357]
[1763406423885,3.2078,3026.9,3026.7,0.88286641]
[1763406424080,3.2078,3026.9,3026.8,0.5357]
[1763406424280,3.2078,3027.3,3027.2,0.53563]
[1763406424587,0.0087183,3028.0,3027.9,0.5355]
[1763406424779,3.2078,3029.3,3027.9,3.2078]
[1763406425082,4.42830123,3031.2,3029.4,0.53523]
[1763406425083,3.2078,3030.2,3029.4,0.53523]
[1763406425281,3.2078,3029.8,3029.6,0.88320437]
[1763406425784,3.2078,3029.8,3029.7,0.88320437]
[1763406425987,3.2078,3029.8,3029.6,0.88320437]
[1763406426181,3.21016788,3029.8,3029.6,0.88320437]
[1763406426379,3.21016788,3029.8,3029.7,0.88320437]
[1763406426577,3.21016788,3029.8,3029.4,1.17760583]
[1763406426786,3.21016788,3029.8,3028.9,2.35618402]
[1763406426787,3.21016788,3029.8,3029.3,1.17760583]
[1763406426973,3.847,3029.4,3029.3,1.17760583]
[1763406427179,3.847,3029.4,3029.2,1.17760583]
[1763406427378,3.847,3029.4,3029.1,5.83e-06]
[1763406427680,3.847,3029.4,3028.3,1.76713801]
[1763406427681,0.6392,3028.5,3028.3,1.76713801]
[1763406427883,0.6392,3028.5,3026.7,8.9897]
[1763406427884,3.2078,3028.4,3027.5,1.76713801]
[1763406428081,0.6392,3028.5,3028.1,4.893e-05]
[1763406428387,3.2078,3028.2,3028.1,4.893e-05]
[1763406428587,3.2078,3028.2,3027.2,1.76713801]
[1763406428887,3.2078,3027.5,3027.2,1.76713801]
[1763406429187,3.2078,3027.5,3027.0,1.76713801]
[1763406429485,3.2078,3027.1,3026.5,1.76713801]
[1763406429786,3.847,3026.7,3026.5,0.00872409]
[1763406431879,0.00799657,3027.1,3026.5,0.00872409]
[1763406431880,3.21579657,3027.1,3026.5,0.54446409]
[1763406432080,3.21579657,3027.1,3026.6,0.53573]
[1763406432280,3.21579657,3027.1,3026.5,0.00872409]
[1763406432281,3.21579657,3027.1,3026.5,4.9836621]
[1763406432477,3.21579657,3027.1,3026.9,0.53567]
[1763406432677,0.00799657,3027.1,3026.9,3.74347]
[1763406432888,0.00799657,3027.1,3026.9,13.04667]
[1763406433287,0.00799657,3027.1,3026.8,2.35618402]
[1763406433288,3.2078,3027.1,3026.8,2.35618402]
[1763406433590,3.2078,3027.1,3026.5,0.54447409]
[1763406433787,3.2078,3027.5,3026.5,1.77726417]
[1763406433983,3.2078,3027.5,3026.7,1.76854008]
[1763406434181,3.2078,3027.1,3026.6,1.76854008]
[1763406434382,3.2078,3027.1,3026.5,0.00872409]
[1763406434888,3.2078,3027.1,3026.6,0.53573]
[1763406435094,3.2078,3027.1,3026.5,0.00872409]
[1763406435386,0.6392,3026.7,3026.5,0.00872409]
[1763406435586,3.2078,3026.6,3026.5,0.00872409]
[1763406435786,3.2078,3026.6,3025.9,4.97634008]
[1763406436091,3.2078,3026.2,3025.7,1.76854008]
[1763406436287,3.2078,3026.2,3025.6,1.76854008]
[1763406436493,3.2078,3026.2,3025.5,3.2078]
[1763406436878,3.2078,3026.2,3025.5,3.21621829]
[1763406437084,3.2078,3026.2,3025.6,0.5359]
[1763406437284,3.2078,3026.2,3025.5,3.21621829]
[1763406437584,3.2078,3026.2,3025.5,4.98475837]
[1763406437780,3.2078,3026.6,3025.9,3.2078]
[1763406438083,0.00494893,3027.3,3025.5,0.00841829]
[1763406438084,3.2078,3027.2,3026.5,3.2078]
[1763406438288,3.2078,3027.2,3027.0,0.53566]
[1763406438593,3.2078,3027.2,3026.6,1.76854008]
[1763406438895,0.6476,3026.7,3026.0,1.76854008]
[1763406439194,3.2078,3026.3,3025.8,0.53587]
[1763406439591,3.2078,3026.3,3025.7,4.97634008]
[1763406439892,3.2078,3026.4,3025.8,0.53587]
[1763406440094,3.2078,3026.4,3025.7,2.30442008]
[1763406440392,3.2078,3026.4,3025.6,2.30443008]
[1763406440692,3.2078,3026.4,3025.7,0.53589]
[1763406440997,3.2078,3026.4,3025.9,0.53586]
[1763406441291,3.2078,3026.4,3025.7,3.2078]
[1763406441292,3.2078,3026.4,3025.8,0.53587]
[1763406441690,3.2078,3026.4,3025.9,0.53585]
[1763406441985,3.2078,3026.4,3025.7,4.97634008]
[1763406442187,3.2078,3026.4,3025.9,0.53586]
[1763406442392,3.2078,3026.4,3026.0,0.53584]
[1763406442589,3.2078,3026.4,3025.6,1.76854008]
[1763406442789,3.2078,3026.4,3025.5,0.00841829]
[1763406442790,3.2078,3026.4,3025.7,4.97634008]
[1763406442989,0.00494893,3027.3,3026.2,2.35618402]
[1763406443191,0.00494893,3027.3,3027.2,0.53563]
[1763406443391,3.2078,3028.9,3027.1,3.2078]
[1763406443590,3.847,3029.4,3028.4,3.2078]
[1763406443788,0.6476,3028.5,3028.4,3.2078]
[1763406443999,3.2078,3028.6,3028.2,1.76851439]
[1763406444295,0.00389681,3028.6,3028.5,3.2078]
[1763406446396,3.8554,3030.3,3028.5,3.6358]
[1763406446705,3.8554,3030.3,3029.6,3.2078]
[1763406446896,3.74278,3030.9,3030.2,3.2078]
[1763406447094,3.2078,3030.9,3029.8,3.2078]
[1763406447296,0.53515,3029.9,3029.8,3.2078]
[1763406447594,0.00359982,3029.9,3029.8,3.2078]
[1763406448199,0.53519,3029.7,3029.5,0.00495727]
[1763406449999,0.00359982,3029.9,3029.5,0.00495727]
[1763406450196,0.00359982,3029.9,3029.6,3.2078]
[1763406450605,0.53517,3029.8,3029.6,3.2078]
[1763406450806,0.5352,3029.7,3029.5,0.00495727]
[1763406451507,0.53874982,3029.9,3029.6,3.2078]
[1763406451701,0.00359982,3029.9,3029.6,3.2078]
[1763406452005,0.5352,3029.6,3029.5,0.00495727]
[1763406452208,0.5352,3029.6,3029.5,3.21275727]
[1763406452703,0.00359982,3029.9,3029.5,3.21275727]
[1763406453005,0.00359982,3029.9,3029.5,12.51275727]
[1763406453212,1.15287842,3032.5,3029.5,12.51275727]
[1763406453213,0.53495,3031.1,3029.6,9.3]
[1763406453504,0.53496,3031.0,3030.5,3.2078]
[1763406453697,0.53494,3031.1,3030.9,3.2078]
[1763406453899,0.53506,3030.5,3030.3,3.2078]
[1763406454097,3.2078,3030.6,3029.9,3.2078]
[1763406454408,0.53512,3030.1,3029.9,3.21129742]
[1763406454706,3.74292,3030.1,3029.9,0.00349742]
[1763406454906,0.5352,3029.6,3029.5,0.00495727]
[1763406455609,0.53519,3029.7,3029.5,0.00495727]
[1763406455808,0.53519,3029.7,3029.6,3.2078]
[1763406456911,0.53516,3029.9,3029.6,3.2078]
[1763406457110,0.53517,3029.8,3029.6,3.2078]
[1763406457306,0.5352,3029.6,3029.5,0.00755796]
[1763406459311,3.743,3029.6,3029.5,0.00755796]
[1763406459611,0.5352,3029.6,3029.5,0.00755796]
[1763406460003,3.2078,3030.1,3029.5,0.00755796]
[1763406460412,0.5352,3029.7,3029.5,3.21535796]
[1763406460715,0.5352,3029.6,3029.5,0.00755796]
[1763406461812,3.2078,3029.8,3029.5,0.00755796]
[1763406462013,0.6338,3030.3,3029.5,3.21535796]
[1763406462014,3.2078,3030.2,3029.5,3.21535796]
[1763406462312,0.53517,3029.8,3029.5,3.21535796]
[1763406462514,0.6338,3029.4,3027.9,1.17127502]
[1763406462709,3.2078,3028.3,3027.4,3.2078]
[1763406462907,3.2078,3028.1,3027.2,4.37907502]
[1763406463111,0.53563,3027.2,3026.7,4.37907502]
[1763406463310,0.53563,3027.2,3026.7,3.2078]
[1763406463514,0.00328189,3027.2,3026.7,3.21202452]
[1763406463818,0.5357,3026.8,3026.7,0.00422452]
[1763406464013,0.6338,3026.7,3026.6,0.00494878]
[1763406464214,0.6338,3026.7,3025.4,3.2078]
[1763406464514,0.6338,3026.7,3025.9,3.2078]
[1763406464717,0.53577,3026.4,3025.9,3.2078]
[1763406464907,0.53575,3026.6,3025.9,3.2078]
[1763406465107,3.2078,3026.9,3026.3,3.2078]
[1763406465313,3.2078,3026.9,3025.9,0.0087185]
[1763406465609,3.2078,3026.9,3025.9,3.2165185]
[1763406465809,0.53573,3026.7,3025.9,3.2165185]
[1763406466014,0.53574,3026.6,3025.9,3.2165185]
[1763406466210,3.2078,3026.4,3025.9,0.0087185]
[1763406466608,0.53579,3026.3,3025.9,0.0087185]
[1763406466804,3.2078,3026.4,3025.9,0.0087185]
[1763406467505,0.53582,3026.2,3025.9,0.0087185]
[1763406467712,0.53583,3026.1,3025.9,0.0087185]
[1763406468416,3.2078,3026.4,3025.9,0.0087185]
[1763406468615,0.53582,3026.1,3025.9,0.0087185]
[1763406469014,3.2078,3026.0,3025.9,0.0087185]
[1763406470017,3.2078,3026.4,3025.9,0.0087185]
[1763406470523,0.53583,3026.1,3025.9,0.0087185]
[1763406471122,0.53582,3026.1,3025.9,0.0087185]
[1763406471625,3.2078,3026.0,3025.9,0.0087185]
[1763406472230,3.74364,3026.0,3025.9,0.0087185]
[1763406472521,3.2078,3026.0,3025.9,0.0087185]
[1763406472713,3.74364,3026.0,3025.9,0.0087185]
[1763406472916,3.74364,3026.0,3024.7,40.8]
[1763406472917,0.53607,3024.7,3024.6,3.2078]
[1763406473114,0.53614,3024.3,3024.2,3.2078]
[1763406473316,0.53614,3024.3,3023.9,3.2078]
[1763406473521,3.2078,3024.7,3023.9,3.2078]
[1763406473728,3.2078,3024.3,3023.5,3.2078]
[1763406474022,3.2078,3024.3,3023.7,0.04145249]
[1763406474023,3.21673269,3024.3,3023.7,0.04145249]
[1763406474219,0.53619,3024.0,3023.7,0.04145249]
[1763406474420,3.75288269,3024.3,3023.7,0.04145249]
[1763406474624,0.00893269,3024.3,3024.0,3.2078]
[1763406475418,0.6338,3025.8,3024.1,9.3064]
[1763406475419,0.53592,3025.6,3024.1,9.3064]
[1763406475627,0.6338,3025.8,3024.8,3.2078]
[1763406475819,1.16967,3025.8,3025.2,3.2078]
[1763406476021,0.6338,3025.8,3025.2,3.2078]
[1763406476217,3.2078,3025.9,3025.2,3.2078]
[1763406476526,0.00905508,3025.9,3025.2,3.21275727]
[1763406477026,3.21685508,3025.9,3025.3,3.2078]
[1763406477223,3.21685508,3025.9,3025.2,0.00495727]
[1763406477418,0.54491508,3025.9,3025.3,3.2078]
[1763406477617,0.53587,3025.8,3025.3,3.2078]
[1763406477831,0.5359,3025.7,3025.3,3.2078]
[1763406478121,0.5359,3025.7,3025.4,3.2078]
[1763406478320,0.5359,3025.7,3025.2,0.00495727]
[1763406478522,0.5359,3025.7,3025.3,3.2078]
[1763406478724,0.5359,3025.7,3025.2,0.00495727]
[1763406478925,0.53594,3025.5,3025.2,0.00495727]
[1763406479126,0.53591,3025.7,3025.2,0.00495727]
[1763406479326,0.53591,3025.6,3025.3,3.2078]
[1763406479530,0.5693,3025.8,3025.2,0.00495727]
[1763406479933,3.74376,3025.3,3025.2,0.00495727]
[1763406480634,3.2078,3025.7,3025.2,0.00495727]
[1763406481030,3.2078,3026.6,3025.6,3.2078]
[1763406481229,3.2078,3027.6,3026.3,3.2078]
[1763406481422,3.2078,3028.0,3027.2,3.2078]
[1763406481730,3.2078,3028.0,3027.3,44.0078]
[1763406482032,3.74338,3027.5,3027.3,0.00495727]
[1763406482223,0.00915773,3028.0,3027.3,0.00495727]
[1763406482224,0.00915773,3028.0,3027.3,0.00736835]
[1763406482425,0.00915773,3028.0,3027.7,3.2078]
[1763406482727,0.00915773,3028.0,3027.3,0.00736835]
[1763406482930,0.00915773,3028.0,3027.4,3.2078]
[1763406483245,0.5693,3030.3,3027.9,3.2078]
[1763406483246,3.2078,3028.9,3027.9,3.2078]
[1763406483423,0.5693,3030.3,3027.4,40.8]
[1763406483424,3.7771,3028.5,3027.4,40.8]
[1763406483736,3.2078,3028.9,3027.9,3.2078]
[1763406483941,3.2078,3029.2,3028.5,3.2078]
[1763406484231,3.2101788,3029.2,3028.7,3.2078]
[1763406484431,3.2101788,3029.2,3028.0,3.2078]
[1763406484432,0.53529,3029.1,3028.0,3.2078]
[1763406484629,3.2101788,3029.2,3028.0,3.2078]
[1763406485034,0.53554,3027.8,3027.5,3.2078]
[1763406485237,0.53554,3027.7,3027.5,3.2078]
[1763406485426,3.2078,3027.9,3027.3,0.00736835]
[1763406485627,3.7771,3028.5,3027.8,3.2078]
[1763406485830,0.53537,3028.7,3027.3,44.01516835]
[1763406486132,0.53541,3028.5,3027.3,44.01516835]
[1763406486430,3.2078,3028.6,3028.2,3.2078]
[1763406486643,0.0023788,3029.2,3028.4,3.2078]
[1763406486933,0.0023788,3029.2,3028.8,3.2078]
[1763406487141,0.0023788,3029.2,3028.9,3.2078]
[1763406487629,0.0023788,3029.2,3028.9,6.5086]
[1763406487834,0.0023788,3029.2,3028.5,4.0851654]
[1763406488036,0.0023788,3029.2,3028.4,1.17127502]
[1763406488037,0.0023788,3029.2,3029.1,3.2078]
[1763406488336,0.0023788,3029.2,3028.8,0.00495727]
[1763406488640,3.2078,3030.6,3029.1,4.0851654]
[1763406488937,0.53517,3029.8,3029.4,3.2078]
[1763406489239,0.53515,3030.0,3029.4,3.2078]
[1763406489538,0.0030317,3030.0,3029.0,3.2078]
[1763406489740,0.53518,3029.8,3029.6,3.2078]
[1763406490034,0.0030317,3030.0,3029.7,3.2078]
[1763406490336,0.0030317,3030.0,3029.6,0.00286081]
[1763406490729,0.0030317,3030.0,3029.6,3.21066081]
[1763406491433,0.5693,3031.2,3029.6,3.21066081]
[1763406491434,3.2078,3031.8,3029.8,0.8773654]
[1763406491734,3.2078,3031.8,3029.7,6.0]
[1763406491735,3.74251,3032.4,3031.3,3.2078]
[1763406491930,0.53475,3032.2,3031.3,3.2078]
[1763406492129,3.2078,3032.9,3031.8,3.2078]
[1763406492431,3.21138588,3032.9,3032.2,3.2078]
[1763406492628,0.00358588,3032.9,3032.2,3.2078]
[1763406493231,0.00358588,3032.9,3032.6,3.2078]
[1763406493732,0.00358588,3032.9,3032.1,3.2078]
[1763406494034,0.00358588,3032.9,3032.6,3.2078]
[1763406494230,0.00358588,3032.9,3032.7,3.2078]
[1763406494435,0.00358588,3032.9,3032.3,3.2078]
[1763406494636,0.53466,3032.7,3032.3,3.2078]
[1763406494834,0.53468,3032.6,3032.1,40.8]
[1763406495033,0.00358588,3032.9,3032.3,3.2078]
[1763406495336,0.00358588,3032.9,3032.0,0.00494893]
[1763406495337,3.2078,3032.6,3032.0,0.00494893]
[1763406495537,0.00358588,3032.9,3032.2,3.2078]
[1763406495733,0.00358588,3032.9,3032.4,3.2078]
[1763406495932,0.00358588,3032.9,3032.8,3.2078]
[1763406496437,3.7771,3033.9,3032.8,3.2078]
[1763406496438,3.2078,3033.9,3032.8,12.5046]
[1763406496635,3.2078,3033.9,3033.3,3.2078]
[1763406496636,3.74225,3033.9,3033.3,3.2078]
[1763406496935,3.2078,3033.5,3032.9,3.2078]
[1763406497338,0.53461,3033.0,3032.5,44.0078]
[1763406497637,0.53462,3033.0,3032.5,44.0078]
[1763406497838,3.2078,3033.1,3032.5,40.8]
[1763406498034,3.21116061,3033.5,3032.7,3.2078]
[1763406498230,3.21116061,3033.5,3032.5,40.8]
[1763406498430,3.21116061,3033.5,3032.6,3.2078]
[1763406498734,0.53457,3033.2,3032.6,3.2078]
[1763406499331,0.53457,3033.2,3032.4,8.324]
[1763406499332,3.74246,3032.7,3032.4,8.324]
[1763406499528,0.53472,3032.4,3032.2,3.2078]
[1763406499734,0.5469,3032.1,3032.0,0.00494893]
[1763406499931,3.2078,3032.1,3032.0,0.00494893]
[1763406500636,3.7547,3032.1,3032.0,0.00494893]
[1763406500937,0.53467,3032.6,3032.0,0.00494893]
[1763406501128,3.2078,3032.7,3032.0,0.00494893]
[1763406501329,0.5469,3033.0,3032.0,0.00494893]
[1763406501330,3.2078,3032.3,3032.0,0.00494893]
[1763406501524,3.2078,3032.7,3032.0,0.00494893]
[1763406501739,3.2078,3032.7,3032.0,3.21274893]
[1763406501941,0.00336061,3033.5,3032.5,3.2078]
[1763406502236,0.00336061,3033.5,3033.2,3.2078]
[1763406502432,0.00336061,3033.5,3032.7,3.2078]
[1763406502732,0.5469,3033.0,3032.0,0.00494893]
[1763406502937,3.2078,3032.6,3032.0,0.00494893]
[1763406503239,0.5469,3033.0,3032.3,3.2078]
[1763406503240,3.7547,3033.0,3032.3,3.2078]
[1763406503537,3.2078,3032.6,3032.0,0.00494893]
[1763406503844,0.04534447,3032.3,3032.1,3.2078]
[1763406504039,0.04534447,3032.3,3032.0,3.21274893]
[1763406504331,0.04534447,3032.3,3032.2,3.2078]
[1763406504735,0.04534447,3032.3,3032.0,0.00494893]
[1763406505135,0.04534447,3032.3,3032.2,3.2078]
[1763406505927,0.04534447,3032.3,3032.0,0.00494893]
[1763406506127,0.53476,3032.1,3032.0,0.00494893]
[1763406506539,1.03616,3032.1,3032.0,0.00494893]
[1763406506737,1.03616,3032.1,3031.0,44.0078]
[1763406506738,9.75454447,3032.1,3031.0,44.0078]
[1763406506926,0.53485,3031.6,3031.0,3.2078]
[1763406507130,3.2078,3031.7,3031.0,3.2078]
[1763406507329,0.5349,3031.3,3031.0,3.2078]
[1763406507839,0.04534447,3031.2,3031.0,3.21133586]
[1763406508133,0.04534447,3031.2,3031.0,0.00353586]
[1763406508436,1.08166447,3031.2,3031.1,3.2078]
[1763406508634,0.53494,3031.1,3031.0,0.00353586]
[1763406508833,0.58028447,3031.1,3031.0,0.00353586]
[1763406509540,0.58028447,3031.1,3030.8,0.00494893]
[1763406509541,0.53497,3030.9,3030.8,0.00494893]
[1763406509735,0.53497,3030.9,3030.8,4.893e-05]
[1763406509934,0.58031447,3030.9,3030.8,4.893e-05]
[1763406510239,6.58031447,3030.9,3030.8,4.893e-05]
[1763406510538,0.58031447,3030.9,3030.8,0.00237708]
[1763406510739,6.58031447,3030.9,3030.8,0.00237708]
[1763406511037,0.58031447,3030.9,3030.8,0.00237708]
[1763406511440,6.04534447,3030.9,3029.9,8.315]
[1763406511636,0.53512,3030.1,3029.9,8.315]
[1763406511839,0.04534447,3030.0,3029.7,3.2078]
[1763406512541,0.04534447,3030.0,3029.7,3.21172672]
[1763406512937,0.04534447,3029.9,3029.7,3.21172672]
[1763406513140,3.2078,3031.0,3029.7,3.21172672]
[1763406513443,0.53517,3029.8,3029.7,0.00392672]
[1763406513828,0.53517,3029.8,3029.5,0.00494893]
[1763406514028,0.53538,3028.6,3028.4,3.2078]
[1763406514235,0.5014,3028.5,3028.4,3.2078]
[1763406514439,3.2078,3029.0,3028.4,3.2078]
[1763406514638,3.2078,3029.0,3028.2,3.2078]
[1763406515030,0.00494893,3028.9,3028.3,0.00494893]
[1763406515442,0.00494893,3028.9,3028.7,3.2078]
[1763406515650,0.00494893,3028.9,3028.8,0.87589265]